lending/lending_fUSD_20240603
["ID","MTS","AMOUNT","RATE_DAILY","PERIOD"]
[328430475,1717383046278,-439.01821855,0.00030136,4]
[328430476,1717383046287,-385.85146135,0.00030136,4]
[328430477,1717383046296,-500.0,0.00030136,4]
[328430478,1717383046306,-500.0,0.00030136,4]
[328430479,1717383046316,-500.0,0.00030136,4]
[328430480,1717383046325,-307.94307314,0.00030136,4]
[328430481,1717383046334,-517.85175169,0.00030136,4]
[328430482,1717383046344,-488.69038633,0.00030136,4]
[328430483,1717383046353,-519.82624659,0.00030136,4]
[328430484,1717383046363,-500.0,0.00030136,4]
[328430485,1717383046376,-500.0,0.00030136,4]
[328430486,1717383046386,-531.39310773,0.00030136,4]
[328430487,1717383046395,-560.39371916,0.00030136,4]
[328430488,1717383046404,-543.48471124,0.00030136,4]
[328430489,1717383046415,-500.0,0.00030136,4]
[328430490,1717383046429,-200.90159755,0.00030136,4]
[328430491,1717383046438,-506.27025694,0.00030136,4]
[328430492,1717383046451,-500.0,0.00030136,4]
[328430493,1717383046461,-297.25336335,0.00030136,4]
[328430494,1717383046471,-556.37519892,0.00030136,4]
[328430495,1717383046480,-507.85788366,0.00030136,4]
[328430496,1717383046490,-635.73171608,0.00030136,4]
[328430497,1717383046499,-528.70555863,0.00030136,4]
[328430498,1717383046509,-534.88986732,0.00030136,4]
[328430499,1717383046519,-518.41207319,0.00030136,4]
[328430500,1717383046528,-463.02780185,0.00030136,4]
[328430501,1717383046538,-532.89110208,0.00030136,4]
[328430502,1717383046548,-500.0,0.00030136,4]
[328430503,1717383046558,-508.60477099,0.00030136,4]
[328430504,1717383046567,-527.26195489,0.00030136,4]
[328430505,1717383046577,-500.0,0.00030136,4]
[328430506,1717383046587,-500.0,0.00030136,4]
[328430507,1717383046597,-520.86257645,0.00030136,4]
[328430508,1717383046607,-500.0,0.00030136,4]
[328430509,1717383046616,-500.0,0.00030136,4]
[328430510,1717383046626,-500.0,0.00030136,4]
[328430511,1717383046635,-500.0,0.00030136,4]
[328430512,1717383046645,-500.0,0.00030136,4]
[328430513,1717383046654,-461.98941312,0.00030136,4]
[328430514,1717383046664,-500.0,0.00030136,4]
[328430515,1717383046674,-500.0,0.00030136,4]
[328430516,1717383046684,-500.0,0.00030136,4]
[328430517,1717383046694,-500.0,0.00030136,4]
[328430518,1717383046704,-500.0,0.00030136,4]
[328430519,1717383046714,-500.0,0.00030136,4]
[328430520,1717383046723,-586.74096914,0.00030136,4]
[328430521,1717383046733,-500.0,0.00030136,4]
[328430522,1717383046743,-614.49,0.00030136,4]
[328430523,1717383046753,-500.0,0.00030136,4]
[328430524,1717383046763,-498.91543111,0.00030136,4]
[328430525,1717383046773,-500.0,0.00030136,4]
[328430526,1717383046783,-500.0,0.00030136,4]
[328430527,1717383046793,-500.0,0.00030136,4]
[328430528,1717383046803,-500.0,0.00030136,4]
[328430529,1717383046813,-500.0,0.00030136,4]
[328430530,1717383046823,-500.0,0.00030136,4]
[328430531,1717383046833,-500.0,0.00030136,4]
[328430532,1717383046842,-500.0,0.00030136,4]
[328430533,1717383046852,-500.0,0.00030136,4]
[328430534,1717383046862,-164.47380807,0.00030136,4]
[328430535,1717383046872,-500.0,0.00030136,4]
[328430536,1717383046882,-730.39,0.00030136,4]
[328430537,1717383046892,-500.0,0.00030136,4]
[328430538,1717383046902,-440.37502201,0.00030136,4]
[328430539,1717383046912,-596.12,0.00030136,4]
[328430540,1717383046922,-500.0,0.00030136,4]
[328430541,1717383046933,-500.0,0.00030136,4]
[328430542,1717383046943,-500.0,0.00030136,4]
[328430543,1717383046953,-500.0,0.00030136,4]
[328430544,1717383046963,-500.0,0.00030136,4]
[328430545,1717383046973,-500.0,0.00030136,4]
[328430546,1717383046982,-500.0,0.00030136,4]
[328430547,1717383046992,-323.78753546,0.00030136,4]
[328430548,1717383047002,-500.0,0.00030136,4]
[328430549,1717383047012,-500.0,0.00030136,4]
[328430550,1717383047021,-406.17955947,0.00030136,4]
[328430551,1717383047031,-936.75,0.00030136,4]
[328430552,1717383047041,-500.0,0.00030136,4]
[328430553,1717383047051,-1187.66,0.00030136,4]
[328430554,1717383047061,-500.0,0.00030136,4]
[328430555,1717383047071,-500.0,0.00030136,4]
[328430556,1717383047080,-500.0,0.00030136,4]
[328430557,1717383047090,-500.0,0.00030136,4]
[328430558,1717383047100,-1818.86,0.00030136,4]
[328430559,1717383047110,-500.0,0.00030136,4]
[328430560,1717383047121,-500.0,0.00030136,4]
[328430561,1717383047131,-500.0,0.00030136,4]
[328430562,1717383047142,-500.0,0.00030136,4]
[328430563,1717383047151,-500.0,0.00030136,4]
[328430564,1717383047161,-500.0,0.00030136,4]
[328430565,1717383047171,-500.0,0.00030136,4]
[328430566,1717383047181,-500.0,0.00030136,4]
[328430567,1717383047191,-500.0,0.00030136,4]
[328430568,1717383047201,-500.0,0.00030136,4]
[328430569,1717383047210,-522.39519593,0.00030136,4]
[328430570,1717383047220,-500.0,0.00030136,4]
[328430571,1717383047229,-500.0,0.00030136,4]
[328430572,1717383047239,-500.0,0.00030136,4]
[328430573,1717383047248,-500.0,0.00030136,4]
[328430574,1717383047258,-500.0,0.00030136,4]
[328430575,1717383047267,-500.0,0.00030136,4]
[328430576,1717383047277,-541.25526295,0.00030136,4]
[328430577,1717383047287,-500.0,0.00030136,4]
[328430578,1717383047296,-500.0,0.00030136,4]
[328430579,1717383047306,-500.0,0.00030136,4]
[328430580,1717383047317,-500.0,0.00030136,4]
[328430581,1717383047328,-500.0,0.00030136,4]
[328430582,1717383047338,-500.0,0.00030136,4]
[328430583,1717383047348,-500.0,0.00030136,4]
[328430584,1717383047361,-500.0,0.00030136,4]
[328430585,1717383047375,-500.0,0.00030136,4]
[328430586,1717383047385,-500.0,0.00030136,4]
[328430587,1717383047396,-344.52084747,0.00030136,4]
[328430588,1717383047407,-644.88,0.00030136,4]
[328430589,1717383047418,-631.89,0.00030136,4]
[328430590,1717383047428,-500.0,0.00030136,4]
[328430591,1717383047438,-521.36248809,0.00030136,4]
[328430592,1717383047449,-500.0,0.00030136,4]
[328430593,1717383047459,-500.0,0.00030136,4]
[328430594,1717383047470,-500.0,0.00030136,4]
[328430595,1717383047480,-500.0,0.00030136,4]
[328430596,1717383047490,-500.0,0.00030136,4]
[328430597,1717383047500,-500.0,0.00030136,4]
[328430598,1717383047510,-538.83,0.00030136,4]
[328430599,1717383047520,-500.0,0.00030136,4]
[328430600,1717383047530,-500.0,0.00030136,4]
[328430601,1717383047542,-500.0,0.00030136,4]
[328430602,1717383047553,-500.0,0.00030136,4]
[328430603,1717383047563,-500.0,0.00030136,4]
[328430604,1717383047574,-532.93640671,0.00030136,4]
[328430605,1717383047585,-538.11592142,0.00030136,4]
[328430606,1717383047595,-500.0,0.00030136,4]
[328430607,1717383047606,-1871.37,0.00030136,4]
[328430608,1717383047617,-500.0,0.00030136,4]
[328430609,1717383047628,-500.0,0.00030136,4]
[328430610,1717383047864,-712.74,0.00030136,4]
[328430611,1717383047874,-500.0,0.00030136,4]
[328430612,1717383047883,-525.97450749,0.00030136,4]
[328430613,1717383047893,-315.38644408,0.00030136,4]
[328430614,1717383047902,-613.85,0.00030136,4]
[328430615,1717383047911,-705.41,0.00030136,4]
[328430616,1717383047920,-450.89688275,0.00030136,4]
[328430617,1717383047931,-500.0,0.00030136,4]
[328430618,1717383047940,-500.0,0.00030136,4]
[328430619,1717383047949,-500.0,0.00030136,4]
[328430620,1717383047959,-270.85958056,0.00030136,4]
[328430621,1717383047968,-500.0,0.00030136,4]
[328430622,1717383047978,-500.0,0.00030136,4]
[328430623,1717383047987,-500.0,0.00030136,4]
[328430624,1717383047996,-972.45,0.00030136,4]
[328430625,1717383048006,-500.0,0.00030136,4]
[328430626,1717383048015,-500.0,0.00030136,4]
[328430627,1717383048024,-1291.57,0.00030136,4]
[328430628,1717383048034,-537.95243711,0.00030136,4]
[328430629,1717383048043,-500.0,0.00030136,4]
[328430630,1717383048052,-500.0,0.00030136,4]
[328430631,1717383048062,-514.76,0.00030136,4]
[328430632,1717383048071,-745.06,0.00030136,4]
[328430633,1717383048080,-531.32717294,0.00030136,4]
[328430634,1717383048089,-500.0,0.00030136,4]
[328430635,1717383048098,-500.0,0.00030136,4]
[328430636,1717383048108,-500.0,0.00030136,4]
[328430637,1717383048117,-500.0,0.00030136,4]
[328430638,1717383048127,-411.2497215,0.00030136,4]
[328430639,1717383048136,-500.0,0.00030136,4]
[328430640,1717383048146,-501.54,0.00030136,4]
[328430641,1717383048155,-500.0,0.00030136,4]
[328430642,1717383048164,-500.0,0.00030136,4]
[328430643,1717383048174,-500.0,0.00030136,4]
[328430644,1717383048183,-586.3,0.00030136,4]
[328430645,1717383048192,-500.0,0.00030136,4]
[328430646,1717383048202,-500.0,0.00030136,4]
[328430647,1717383048211,-500.0,0.00030136,4]
[328430648,1717383048220,-515.49479758,0.00030136,4]
[328430649,1717383048230,-500.0,0.00030136,4]
[328430650,1717383048239,-536.97936938,0.00030136,4]
[328430651,1717383048249,-647.05,0.00030136,4]
[328430652,1717383048258,-705.88,0.00030136,4]
[328430653,1717383048267,-500.0,0.00030136,4]
[328430654,1717383048277,-500.0,0.00030136,4]
[328430655,1717383048286,-175.29936489,0.00030136,4]
[328430656,1717383048296,-500.0,0.00030136,4]
[328430657,1717383048306,-500.0,0.00030136,4]
[328430658,1717383048317,-500.0,0.00030136,4]
[328430659,1717383048327,-500.0,0.00030136,4]
[328430660,1717383048336,-503.06,0.00030136,4]
[328430661,1717383048346,-510.44,0.00030136,4]
[328430662,1717383048355,-500.0,0.00030136,4]
[328430663,1717383048364,-500.0,0.00030136,4]
[328430664,1717383048378,-500.0,0.00030136,4]
[328430665,1717383048388,-553.73,0.00030136,4]
[328430666,1717383048397,-500.0,0.00030136,4]
[328430667,1717383048406,-825.33,0.00030136,4]
[328430668,1717383048415,-500.0,0.00030136,4]
[328430669,1717383048427,-633.07,0.00030136,4]
[328430670,1717383048436,-500.0,0.00030136,4]
[328430671,1717383048450,-500.0,0.00030136,4]
[328430672,1717383048460,-500.0,0.00030136,4]
[328430673,1717383048469,-500.0,0.00030136,4]
[328430674,1717383048478,-500.0,0.00030136,4]
[328430675,1717383048487,-500.0,0.00030136,4]
[328430676,1717383048496,-500.0,0.00030136,4]
[328430677,1717383048505,-500.0,0.00030136,4]
[328430678,1717383048514,-424.38742752,0.00030136,4]
[328430679,1717383048524,-623.31,0.00030136,4]
[328430680,1717383048533,-551.05579948,0.00030136,4]
[328430681,1717383048542,-500.0,0.00030136,4]
[328430682,1717383048551,-151.0,0.00030136,7]
[328430683,1717383048560,-151.0,0.00030136,7]
[328430684,1717383048569,-500.0,0.00030136,4]
[328430685,1717383048579,-291.20258683,0.00030136,4]
[328430686,1717383048588,-777.94,0.00030136,4]
[328430687,1717383048597,-500.0,0.00030136,4]
[328430688,1717383048606,-578.50330891,0.00030136,4]
[328430689,1717383048615,-500.0,0.00030136,4]
[328430690,1717383048624,-500.0,0.00030136,4]
[328430691,1717383048633,-500.0,0.00030136,4]
[328430692,1717383048643,-557.82,0.00030136,4]
[328430693,1717383048652,-500.0,0.00030136,4]
[328430694,1717383048661,-500.0,0.00030136,4]
[328430695,1717383048670,-653.45,0.00030136,4]
[328430696,1717383048680,-500.0,0.00030136,4]
[328430697,1717383048690,-500.0,0.00030136,4]
[328430698,1717383048699,-500.0,0.00030136,4]
[328430699,1717383048709,-500.0,0.00030136,4]
[328430700,1717383048718,-496.52850392,0.00030136,4]
[328430701,1717383048727,-500.0,0.00030136,4]
[328430702,1717383048736,-500.0,0.00030136,4]
[328430703,1717383048745,-500.0,0.00030136,4]
[328430704,1717383048755,-500.0,0.00030136,4]
[328430705,1717383048764,-500.0,0.00030136,4]
[328430706,1717383048774,-599.61612689,0.00030136,4]
[328430707,1717383048783,-500.0,0.00030136,4]
[328430708,1717383048792,-500.0,0.00030136,4]
[328430709,1717383048801,-1208.65,0.00030136,4]
[328430710,1717383048811,-500.0,0.00030136,4]
[328430711,1717383048820,-500.0,0.00030136,4]
[328430712,1717383048829,-500.0,0.00030136,4]
[328430713,1717383048839,-520.18309968,0.00030136,4]
[328430714,1717383048849,-500.0,0.00030136,4]
[328430715,1717383048858,-541.35142118,0.00030136,4]
[328430716,1717383048867,-500.0,0.00030136,4]
[328430717,1717383048877,-250.0,0.00030136,4]
[328430718,1717383048886,-500.0,0.00030136,4]
[328430719,1717383048895,-543.89800381,0.00030136,4]
[328430720,1717383048905,-391.14719885,0.00030136,4]
[328430721,1717383048914,-500.0,0.00030136,4]
[328430722,1717383048923,-500.0,0.00030136,4]
[328430723,1717383048934,-524.14279582,0.00030136,4]
[328430724,1717383048943,-369.62347623,0.00030136,4]
[328430725,1717383048953,-500.0,0.00030136,4]
[328430726,1717383048963,-246.27976825,0.00030136,4]
[328430727,1717383048972,-500.0,0.00030136,4]
[328430728,1717383048982,-612.73,0.00030136,4]
[328430729,1717383048991,-500.0,0.00030136,4]
[328430730,1717383049001,-500.0,0.00030136,2]
[328430731,1717383049011,-500.0,0.00030136,4]
[328430732,1717383049020,-500.0,0.00030136,4]
[328430733,1717383049029,-500.0,0.00030136,4]
[328430734,1717383049039,-500.0,0.00030136,4]
[328430735,1717383049048,-524.8351347,0.00030136,4]
[328430736,1717383049058,-500.0,0.00030136,4]
[328430737,1717383049067,-252.25465591,0.00030136,4]
[328430738,1717383049077,-500.0,0.00030136,4]
[328430739,1717383049087,-500.0,0.00030136,4]
[328430740,1717383049096,-500.0,0.00030136,4]
[328430741,1717383049106,-500.0,0.00030136,4]
[328430742,1717383049116,-512.76793922,0.00030136,4]
[328430743,1717383049125,-500.0,0.00030136,4]
[328430744,1717383049135,-500.0,0.00030136,4]
[328430745,1717383049146,-529.77,0.00030136,4]
[328430746,1717383049155,-858.8,0.00030136,4]
[328430747,1717383049165,-500.0,0.00030136,4]
[328430748,1717383049176,-500.0,0.00030136,4]
[328430749,1717383049186,-500.0,0.00030136,4]
[328430750,1717383049195,-500.0,0.00030136,4]
[328430751,1717383049204,-500.0,0.00030136,4]
[328430752,1717383049215,-500.0,0.00030136,4]
[328430753,1717383049224,-500.0,0.00030136,4]
[328430754,1717383049234,-547.13199318,0.00030136,4]
[328430755,1717383049243,-932.87,0.00030136,4]
[328430756,1717383049252,-1286.79,0.00030136,4]
[328430757,1717383049262,-586.22,0.00030136,4]
[328430758,1717383049271,-500.0,0.00030136,4]
[328430759,1717383049281,-177.742521,0.00030136,7]
[328430760,1717383049291,-500.0,0.00030136,4]
[328430761,1717383049301,-500.0,0.00030136,4]
[328430762,1717383049311,-500.0,0.00030136,4]
[328430763,1717383049320,-500.0,0.00030136,4]
[328430764,1717383049329,-168.791295,0.00030136,7]
[328430765,1717383049339,-500.0,0.00030136,4]
[328430766,1717383049348,-500.0,0.00030136,4]
[328430767,1717383049358,-509.18,0.00030136,4]
[328430768,1717383049367,-4478.3,0.00030136,4]
[328430769,1717383049381,-500.0,0.00030136,4]
[328430770,1717383049391,-500.0,0.00030136,4]
[328430771,1717383049400,-500.0,0.00030136,4]
[328430772,1717383049410,-500.0,0.00030136,4]
[328430773,1717383049421,-518.55945665,0.00030136,4]
[328430774,1717383049431,-500.0,0.00030136,4]
[328430775,1717383049441,-500.0,0.00030136,4]
[328430776,1717383049451,-503.01103857,0.00030136,4]
[328430777,1717383049460,-500.0,0.00030136,4]
[328430778,1717383049470,-500.0,0.00030136,4]
[328430779,1717383049479,-1170.51,0.00030136,4]
[328430780,1717383049489,-1037.41,0.00030136,4]
[328430781,1717383049498,-530.67549381,0.00030136,4]
[328430782,1717383049507,-1019.2,0.00030136,4]
[328430783,1717383049517,-519.43203234,0.00030136,4]
[328430784,1717383049526,-150.0,0.00030136,4]
[328430785,1717383049535,-500.0,0.00030136,4]
[328430786,1717383049545,-500.0,0.00030136,4]
[328430787,1717383049554,-34960.64,0.00030136,4]
[328430788,1717383049564,-532.1142249,0.00030136,4]
[328430789,1717383049573,-586.81902041,0.00030136,4]
[328430790,1717383049582,-524.53187261,0.00030136,4]
[328430791,1717383049592,-288.42695628,0.00030136,4]
[328430792,1717383049601,-519.46938476,0.00030136,4]
[328430793,1717383049611,-500.0,0.00030136,4]
[328430794,1717383049620,-1375.28,0.00030136,4]
[328430795,1717383049630,-726.35,0.00030136,4]
[328430796,1717383049639,-500.0,0.00030136,4]
[328430797,1717383049649,-1236.68,0.00030136,4]
[328430798,1717383049658,-1209.41,0.00030136,4]
[328430799,1717383049667,-749.6,0.00030136,4]
[328430800,1717383049677,-500.0,0.00030136,4]
[328430801,1717383049687,-500.0,0.00030136,4]
[328430802,1717383049696,-500.0,0.00030136,4]
[328430803,1717383049706,-151.0,0.00030136,7]
[328430804,1717383049715,-14117.3,0.00030136,4]
[328430805,1717383049724,-151.0,0.00030136,7]
[328430806,1717383049734,-151.0,0.00030136,7]
[328430807,1717383049743,-500.0,0.00030136,4]
[328430808,1717383049752,-500.0,0.00030136,4]
[328430809,1717383049762,-151.0,0.00030136,7]
[328430810,1717383049771,-151.0,0.00030136,7]
[328430811,1717383049780,-151.0,0.00030136,7]
[328430812,1717383049789,-500.0,0.00030136,4]
[328430813,1717383049799,-4225.42,0.00030136,4]
[328430814,1717383049808,-500.0,0.00030136,4]
[328430815,1717383049817,-500.0,0.00030136,4]
[328430816,1717383049827,-500.0,0.00030136,4]
[328430817,1717383049837,-500.0,0.00030136,4]
[328430818,1717383049846,-500.0,0.00030136,4]
[328430819,1717383049855,-533.80616163,0.00030136,4]
[328430820,1717383049865,-2343.51,0.00030136,4]
[328430821,1717383049875,-500.0,0.00030136,4]
[328430822,1717383049884,-500.0,0.00030136,4]
[328430823,1717383049893,-163.046483,0.00030136,7]
[328430824,1717383049903,-500.0,0.00030136,4]
[328430825,1717383049915,-1874.55,0.00030136,4]
[328430826,1717383049925,-524.21962224,0.00030136,4]
[328430827,1717383049934,-522.74236291,0.00030136,4]
[328430828,1717383049943,-500.0,0.00030136,4]
[328430829,1717383049952,-500.0,0.00030136,4]
[328430830,1717383049962,-570.41654867,0.00030136,4]
[328430831,1717383049971,-1355.02,0.00030136,4]
[328430832,1717383049981,-500.0,0.00030136,4]
[328430833,1717383049991,-461.64064294,0.00030136,4]
[328430834,1717383050000,-500.0,0.00030136,4]
[328430835,1717383050009,-500.0,0.00030136,4]
[328430836,1717383050019,-500.0,0.00030136,4]
[328430837,1717383050028,-500.0,0.00030136,4]
[328430838,1717383050038,-500.0,0.00030136,4]
[328430839,1717383050047,-500.0,0.00030136,4]
[328430840,1717383050056,-838.43,0.00030136,4]
[328430841,1717383050066,-500.0,0.00030136,4]
[328430842,1717383050075,-1859.23,0.00030136,4]
[328430843,1717383050084,-500.0,0.00030136,4]
[328430844,1717383050094,-509.6141045,0.00030136,4]
[328430845,1717383050103,-500.0,0.00030136,4]
[328430846,1717383050111,-500.0,0.00030136,4]
[328430847,1717383050175,-526.67945753,0.00030136,4]
[328430848,1717383050185,-500.0,0.00030136,4]
[328430849,1717383050197,-500.0,0.00030136,4]
[328430850,1717383050207,-1000.0,0.00030136,4]
[328430851,1717383050216,-528.50009585,0.00030136,4]
[328430852,1717383050225,-500.0,0.00030136,4]
[328430853,1717383050234,-968.14,0.00030136,4]
[328430854,1717383050243,-1216.93,0.00030136,4]
[328430855,1717383050253,-500.0,0.00030136,4]
[328430856,1717383050262,-517.62655987,0.00030136,4]
[328430857,1717383050271,-523.83350721,0.00030136,4]
[328430858,1717383050280,-536.38834758,0.00030136,4]
[328430859,1717383050290,-732.47,0.00030136,4]
[328430860,1717383050299,-875.3,0.00030136,4]
[328430861,1717383050308,-814.06,0.00030136,4]
[328430862,1717383050318,-500.0,0.00030136,4]
[328430863,1717383050327,-500.0,0.00030136,4]
[328430864,1717383050336,-513.84309388,0.00030136,4]
[328430865,1717383050346,-527.74401984,0.00030136,4]
[328430866,1717383050355,-652.381294,0.00030136,7]
[328430867,1717383050365,-500.0,0.00030136,4]
[328430868,1717383050379,-652.381294,0.00030136,7]
[328430869,1717383050388,-532.01188113,0.00030136,4]
[328430870,1717383050397,-652.381294,0.00030136,7]
[328430871,1717383050407,-500.0,0.00030136,4]
[328430872,1717383050417,-591.35,0.00030136,4]
[328430873,1717383050426,-516.9702191,0.00030136,4]
[328430874,1717383050436,-500.0,0.00030136,4]
[328430875,1717383050447,-500.0,0.00030136,4]
[328430876,1717383050456,-652.381294,0.00030136,7]
[328430877,1717383050466,-3062.26,0.00030136,4]
[328430878,1717383050475,-652.381294,0.00030136,7]
[328430879,1717383050484,-652.381294,0.00030136,7]
[328430880,1717383050494,-500.0,0.00030136,4]
[328430881,1717383050503,-695.63,0.00030136,4]
[328430882,1717383050512,-500.0,0.00030136,4]
[328430883,1717383050521,-500.0,0.00030136,4]
[328430884,1717383050530,-500.0,0.00030136,4]
[328430885,1717383050540,-2412.97,0.00030136,4]
[328430886,1717383050550,-3534.67,0.00030136,4]
[328430887,1717383050559,-521.4537002,0.00030136,4]
[328430888,1717383050569,-151.0,0.00030136,7]
[328430889,1717383050578,-151.0,0.00030136,7]
[328430890,1717383050587,-2480.71,0.00030136,4]
[328430891,1717383050596,-151.0,0.00030136,7]
[328430892,1717383050606,-500.0,0.00030136,4]
[328430893,1717383050615,-764.01,0.00030136,4]
[328430894,1717383050624,-151.0,0.00030136,7]
[328430895,1717383050633,-151.0,0.00030136,7]
[328430896,1717383050643,-151.0,0.00030136,7]
[328430897,1717383050652,-800.8,0.00030136,4]
[328430898,1717383050661,-9189.46,0.00030136,4]
[328430899,1717383050670,-500.0,0.00030136,4]
[328430900,1717383050679,-515.59127562,0.00030136,4]
[328430901,1717383050689,-503.35202747,0.00030136,4]
[328430902,1717383050699,-2150.22,0.00030136,4]
[328430903,1717383050708,-500.0,0.00030136,4]
[328430904,1717383050718,-1982.04,0.00030136,4]
[328430905,1717383050728,-582.72588594,0.00030136,4]
[328430906,1717383050738,-4186.6,0.00030136,4]
[328430907,1717383050747,-531.96420183,0.00030136,4]
[328430908,1717383050757,-7160.23,0.00030136,4]
[328430909,1717383050766,-500.0,0.00030136,4]
[328430910,1717383050776,-1583.32,0.00030136,4]
[328430911,1717383050785,-573.3,0.00030136,4]
[328430912,1717383050794,-3511.0,0.00030136,4]
[328430913,1717383050803,-500.0,0.00030136,4]
[328430914,1717383050813,-500.0,0.00030136,4]
[328430915,1717383050822,-500.0,0.00030136,4]
[328430916,1717383050831,-500.0,0.00030136,4]
[328430917,1717383050841,-500.0,0.00030136,4]
[328430918,1717383050850,-500.0,0.00030136,4]
[328430919,1717383050859,-500.0,0.00030136,4]
[328430920,1717383050869,-1963.1,0.00030136,4]
[328430921,1717383050878,-500.0,0.00030136,4]
[328430922,1717383050886,-656.97,0.00030136,4]
[328430923,1717383050896,-500.0,0.00030136,4]
[328430924,1717383050905,-500.0,0.00030136,4]
[328430925,1717383050916,-527.74,0.00030136,4]
[328430926,1717383050925,-500.0,0.00030136,4]
[328430927,1717383050934,-592.28795128,0.00030136,4]
[328430928,1717383050943,-500.0,0.00030136,4]
[328430929,1717383050953,-500.0,0.00030136,4]
[328430930,1717383050962,-622.95,0.00030136,4]
[328430931,1717383050972,-500.0,0.00030136,4]
[328430932,1717383050981,-500.0,0.00030136,4]
[328430933,1717383050990,-500.0,0.00030136,4]
[328430934,1717383050999,-2897.65,0.00030136,4]
[328430935,1717383051008,-237.2174706,0.00030136,4]
[328430936,1717383051018,-500.0,0.00030136,4]
[328430937,1717383051028,-1723.41,0.00030136,4]
[328430938,1717383051037,-1703.68,0.00030136,4]
[328430939,1717383051046,-500.0,0.00030136,4]
[328430940,1717383051055,-500.0,0.00030136,4]
[328430941,1717383051065,-500.0,0.00030136,4]
[328430942,1717383051074,-500.0,0.00030136,4]
[328430943,1717383051083,-500.0,0.00030136,4]
[328430944,1717383051092,-500.0,0.00030136,4]
[328430945,1717383051101,-374.55424908,0.00030136,4]
[328430946,1717383051121,-502.07231217,0.00030136,4]
[328430947,1717383051130,-1487.14,0.00030136,4]
[328430948,1717383051140,-500.0,0.00030136,4]
[328430949,1717383051149,-500.0,0.00030136,4]
[328430950,1717383051159,-500.0,0.00030136,4]
[328430951,1717383051168,-500.0,0.00030136,4]
[328430952,1717383051178,-500.0,0.00030136,4]
[328430953,1717383051187,-500.0,0.00030136,4]
[328430954,1717383051196,-500.0,0.00030136,4]
[328430955,1717383051206,-500.0,0.00030136,4]
[328430956,1717383051215,-500.0,0.00030136,4]
[328430957,1717383051224,-500.0,0.00030136,4]
[328430958,1717383051233,-500.0,0.00030136,4]
[328430959,1717383051242,-500.0,0.00030136,4]
[328430960,1717383051252,-500.0,0.00030136,4]
[328430961,1717383051261,-1930.1,0.00030136,4]
[328430962,1717383051271,-500.0,0.00030136,4]
[328430963,1717383051280,-500.0,0.00030136,4]
[328430964,1717383051289,-500.0,0.00030136,4]
[328430965,1717383051299,-500.0,0.00030136,4]
[328430966,1717383051308,-506.03612349,0.00030136,4]
[328430967,1717383051317,-1201.29,0.00030136,4]
[328430968,1717383051327,-2217.54,0.00030136,4]
[328430969,1717383051336,-1608.51,0.00030136,4]
[328430970,1717383051345,-500.0,0.00030136,4]
[328430971,1717383051355,-217.330604,0.00030136,7]
[328430972,1717383051364,-500.0,0.00030136,4]
[328430973,1717383051377,-500.0,0.00030136,4]
[328430974,1717383051386,-13207.0,0.00030136,4]